[Event "20th Delhi GM Open 2023"]
[Site "New Delhi"]
[Date "2023.03.26"]
[Round "6.3"]
[White "Audi Ameya"]
[Black "Murzin, Volodar"]
[Result "0-1"]
[ECO "B80"]
[WhiteElo "2387"]
[BlackElo "2554"]
[Annotator "TA"]
[PlyCount "114"]
[EventDate "2023.03.23"]
[EventType "swiss"]
[EventCountry "IND"]
[SourceTitle "playchess.com"]
[Source "ChessBase"]
[SourceQuality "1"]
[TimeControl "5400+30"]

{[%evp 14,114,53,35,57,56,46,41,48,41,38,36,41,48,47,49,41,43,45,37,39,43,43,35,47,52,94,91,99,100,95,88,103,55,70,52,54,9,14,0,0,0,0,0,66,-21,-27,-29,-58,-33,-40,-33,-52,-37,-42,-54,-20,-120,-124,-633,-631,-626,-621,-606,-565,-920,-872,-820,-1204,-1193,-1111,-1060,-1036,-976,-635,-879,-628,-12838,-12839,-12848,-12848,-12849,-12849,-12850,-12850,-12850,-12846,-12846,-12847,-12847,-12847,-12848,-12848,-12849,-12847,-12847,-12847,-12848,-12848,-12850,-27999,-27999,-27999]} 1. e4 {[%emt 0:00:01]} c5 {[%emt 0:00:08]} 2. Nf3 {[%emt 0:00:03]} d6 {[%emt 0:00:04]} 3. d4 {[%emt 0:00:04]} cxd4 {[%emt 0:00:04]} 4. Nxd4 {[%emt 0:00:03]} Nf6 {[%emt 0:00:05]} 5. Nc3 {[%emt 0:00:03]} a6 {[%emt 0:00:03]} 6. f3 {[%emt 0:00:25]} e6 {[%emt 0:07:14]} 7. g4 {[%emt 0:00:36]} Be7 {[%emt 0:02:58]} 8. Be3 {[%emt 0:00:41]} Nfd7 {[%emt 0:05:01] B80: Sicilian Scheveningen: 6 g3 and 6 Be3, including English Attack.} 9. Qd2 {[%emt 0:07:25]} Bh4+ {[%emt 0:01:54]} 10. Bf2 {[%emt 0:00:29]} Bxf2+ {[%emt 0:03:21] White is slightly better.} 11. Qxf2 {[%emt 0:00:02]} Qb6 {[%emt 0:00:07]} 12. O-O-O {[%emt 0:23:10]} Nc6 {[%emt 0:00:46] [#]} 13. f4 $146 {[%emt 0:05:39]} ({Predecessor:} 13. Qd2 Nxd4 14. Qxd4 Qxd4 15. Rxd4 Ke7 {½-½ Stojanovski,D (2235)-Tringov,G (2365) Skopje op 1998 (2)}) 13... Nxd4 {[%emt 0:12:20]} 14. Qxd4 {[%emt 0:00:37]} Qxd4 {[%emt 0:00:04]} 15. Rxd4 {[%emt 0:00:02]} Ke7 {[%emt 0:00:04]} 16. Be2 {[%emt 0:05:23]} Rd8 {[%emt 0:02:22]} 17. Rhd1 $36 {[%emt 0:00:20][%mdl 2048] White is more active.} Nb8 {[%emt 0:01:40]} 18. Na4 {[%emt 0:06:04] [#] Strongly threatening Nb6.} Nc6 {[%emt 0:01:24]} 19. Rc4 {[%emt 0:00:19]} h6 {[%emt 0:10:27]} 20. Nb6 {[%emt 0:00:33]} Rb8 {[%emt 0:00:05]} 21. h4 {[%emt 0:03:41]} Bd7 {[%emt 0:05:44]} 22. b4 {[%emt 0:02:19]} g5 {[%emt 0:14:06]} 23. hxg5 {[%emt 0:18:11]} (23. fxg5 $16 hxg5 24. h5) 23... hxg5 $14 {[%emt 0:00:01]} 24. f5 {[%emt 0:00:01]} Ne5 $1 {[%emt 0:01:37]} 25. Rcd4 {[%emt 0:00:26]} (25. Rc7 $5) 25... Bc6 {[%emt 0:03:24]} 26. c4 {[%emt 0:02:10]} Rh8 {[%emt 0:01:35]} 27. b5 {[%emt 0:00:01]} Rh2 {[%emt 0:05:32]} 28. R1d2 {[%emt 0:00:07]} ({Reject} 28. bxc6 bxc6 29. c5 dxc5 $15) 28... Be8 {[%emt 0:09:09]} ({Black should play} 28... axb5 $11 29. cxb5 Be8) 29. Rxd6 {[%emt 0:00:13]} (29. a4 $1 $14) 29... axb5 $11 {[%emt 0:01:38]} (29... Rxe2 $5 30. f6+ $8 Kxf6 31. Rxe2 axb5 $15) 30. cxb5 {[%emt 0:00:02] [#]} Rxe2 $1 {[%emt 0:00:12][%mdl 64] Deflection} 31. f6+ {[%emt 0:00:04]} Kxf6 {[%emt 0:00:04]} 32. Rxe2 {[%emt 0:00:04] a4 would be deadly.} Bxb5 {[%emt 0:01:23]} 33. Rg2 {[%emt 0:07:36]} Rh8 {[%emt 0:03:15] Hoping for ...Nd3+.} 34. a4 {[%emt 0:00:30]} Rh1+ {[%emt 0:00:41]} 35. Kc2 {[%emt 0:07:04]} (35. Rd1 $1 $11 Rxd1+ 36. Kxd1) 35... Bc6 $17 {[%emt 0:00:20] Black is more active.} 36. Nd5+ $2 {[%emt 0:02:38][%mdl 8192] This costs White the game.} (36. Rd4 $17) 36... Bxd5 $19 {[%emt 0:00:46]} 37. exd5 {[%emt 0:00:04][%mdl 4096] Endgame KRR-KRN} Nc4 {[%emt 0:00:03]} 38. Rf2+ {[%emt 0:00:23]} Ke7 {[%emt 0:00:03]} 39. dxe6 {[%emt 0:00:05]} Nxd6 {[%emt 0:00:06]} (39... Kxd6 $2 40. exf7 Ne3+ 41. Kc3 $18) 40. exf7 {[%emt 0:01:30]} Nxf7 {[%emt 0:00:02] KRN-KR} 41. Rf5 {[%emt 0:00:36]} Rh6 {[%emt 0:01:01]} 42. Rb5 {[%emt 0:00:08]} b6 {[%emt 0:01:10]} 43. Kd3 {[%emt 0:00:24]} Rf6 {[%emt 0:01:46] Threatens to win with ...Rf4.} 44. Ke3 {[%emt 0:00:47]} Kf8 {[%emt 0:00:44]} 45. a5 {[%emt 0:00:14]} bxa5 {[%emt 0:00:32]} 46. Rxa5 {[%emt 0:00:02]} Kg7 {[%emt 0:00:06]} 47. Rb5 {[%emt 0:00:36]} Kg6 {[%emt 0:01:22]} 48. Rb4 {[%emt 0:00:06]} Ne5 {[%emt 0:01:56]} 49. Re4 {[%emt 0:00:28]} Re6 {[%emt 0:00:00]} 50. Ke2 {[%emt 0:01:30]} Kf6 {[%emt 0:00:00]} 51. Kf1 {[%emt 0:00:11]} Rc6 {[%emt 0:00:09]} 52. Ra4 {[%emt 0:01:18]} Rc4 {[%emt 0:00:07]} 53. Ra6+ {[%emt 0:00:05]} Kf7 {[%emt 0:00:08]} 54. Ra5 {[%emt 0:00:05]} Ke6 {[%emt 0:00:04]} ({Stronger than} 54... Nxg4 55. Rxg5 Ke6 56. Kg2 $15) 55. Ra6+ {[%emt 0:00:06]} Kd5 {[%emt 0:00:11]} 56. Kg2 {[%emt 0:01:25]} Rxg4+ {[%emt 0:00:43]} 57. Kh3 {[%emt 0:00:03]} Rc4 {[%emt 0:00:19] Weighted Error Value: White=0.70/Black=0.18 (very precise)} 0-1

[Event "20th Delhi GM Open 2023"]
[Site "New Delhi"]
[Date "2023.03.26"]
[Round "6.4"]
[White "Savchenko, Boris"]
[Black "Neelash Saha"]
[Result "0-1"]
[ECO "D56"]
[WhiteElo "2552"]
[BlackElo "2444"]
[Annotator "TA"]
[PlyCount "53"]
[EventDate "2023.03.23"]
[EventType "swiss"]
[EventCountry "IND"]
[SourceTitle "playchess.com"]
[Source "ChessBase"]
[SourceQuality "1"]
[TimeControl "5400+30"]

{[%evp 14,53,18,0,22,0,31,24,24,-72,0,-54,-41,-47,-33,-34,-16,-35,-33,-61,-38,-113,-95,-110,-105,-189,-189,-214,-197,-205,-151,-1246,-1237,-1254,-1228,-1148,-1140,-1137,-1125,-1045,-1043,-29989]} 1. Nf3 {[%emt 0:00:14]} d5 {[%emt 0:00:42]} 2. d4 {[%emt 0:00:19]} Nf6 {[%emt 0:00:12]} 3. c4 {[%emt 0:02:11]} e6 {[%emt 0:01:18]} 4. Nc3 {[%emt 0:00:18]} Be7 {[%emt 0:00:06]} 5. Bg5 {[%emt 0:07:11]} h6 {[%emt 0:00:12]} 6. Bh4 {[%emt 0:02:59]} O-O {[%emt 0:00:05]} 7. e3 {[%emt 0:02:22]} Ne4 {[%emt 0:00:05]} 8. Bg3 {[%emt 0:04:16]} Nxg3 {[%emt 0:07:44] D56: Queen's Gambit Declined: Lasker Defence.} (8... Bb4 {seems wilder.} 9. Rc1 c5 10. Bd3 cxd4 11. exd4 Bxc3+ 12. bxc3 Nxg3 13. fxg3 dxc4 14. Bxc4 b6) 9. hxg3 {[%emt 0:00:38]} c6 {[%emt 0:00:03] [#]} 10. g4 $146 {[%emt 0:06:07]} ({Predecessor:} 10. Bd3 dxc4 11. Bxc4 Nd7 12. Rc1 c5 13. O-O cxd4 14. exd4 Nf6 15. Ne5 Bd7 16. Qb3 {1-0 L'Ami,E (2618)-Cyborowski,L (2510) Bundesliga 1415 2014 (14.2)}) 10... Nd7 {[%emt 0:00:09] White has an edge.} 11. g3 {[%emt 0:00:43] [#]} (11. Qc2 $11 {remains equal.}) 11... Re8 {[%emt 0:01:44]} (11... dxc4 $1 $17 12. Bxc4 b5) 12. cxd5 {[%emt 0:09:24]} ({White should try} 12. Qc2 $11) 12... exd5 $15 {[%emt 0:00:42]} 13. Be2 {[%emt 0:02:19]} Nf8 {[%emt 0:01:03]} 14. Nh4 {[%emt 0:02:21]} Bxh4 {[%emt 0:04:21]} 15. gxh4 {[%emt 0:00:10]} f5 16. Rc1 {[%emt 0:28:59]} Qf6 {[%emt 0:01:36]} (16... fxg4 {with more complications.} 17. Bxg4 Nh7 18. Kd2 Nf6) 17. gxf5 {[%emt 0:01:28]} (17. g5 $15 hxg5 18. hxg5 Qxg5 19. Kd2) 17... Bxf5 $17 {[%emt 0:00:07][%cal Bc8f5,Bf5g6,Bg6h5][%mdl 32]} 18. Rh2 {[%emt 0:12:59]} Re7 {[%emt 0:02:39] Black is more active.} 19. Na4 {[%emt 0:04:40]} (19. Bh5 $17) 19... Rae8 $19 {[%emt 0:17:33]} 20. Bh5 {[%emt 0:00:08]} Bg6 {[%emt 0:00:41] ...Bxh5 would be deadly.} 21. Kd2 {[%emt 0:03:45]} Re4 {[%emt 0:13:06][%cal Oe4d4] aiming for ...Rxd4+!} 22. Kc3 {[%emt 0:03:40] [#] White does not recover from this.} (22. Bxg6 $17 Nxg6 23. Kc2) 22... Rxe3+ $1 {[%emt 0:00:57][%mdl 512] Black is clearly winning.} 23. fxe3 {[%emt 0:00:05]} Rxe3+ {[%emt 0:00:03]} 24. Kb4 {[%emt 0:00:05]} Bxh5 {[%emt 0:01:31] White is weak on the light squares} 25. Qd2 {[%emt 0:03:19]} Qe7+ {[%emt 0:00:12]} 26. Nc5 {[%emt 0:00:51]} b6 {[%emt 0:00:07][%mdl 64] Pin} 27. Ra1 {[%emt 0:00:17] A cool game by Neelash Saha.   Weighted Error Value: White=0.54/Black=0.15 (very precise)} 0-1

[Event "20th Delhi GM Open 2023"]
[Site "New Delhi"]
[Date "2023.03.26"]
[Round "6.5"]
[White "Krasenkow, Michal"]
[Black "Madaminov, Mukhiddin"]
[Result "1/2-1/2"]
[ECO "D87"]
[WhiteElo "2527"]
[BlackElo "2436"]
[Annotator "TA"]
[PlyCount "129"]
[EventDate "2023.03.23"]
[EventType "swiss"]
[EventCountry "IND"]
[SourceTitle "playchess.com"]
[Source "ChessBase"]
[SourceQuality "1"]
[TimeControl "5400+30"]

{[%evp 23,129,0,0,0,0,0,-13,-41,9,4,18,10,21,18,21,47,28,0,0,0,0,0,0,0,0,0,0,0,0,0,0,-31,-31,-30,0,0,0,0,0,0,0,-36,-29,-33,-34,-136,-43,-55,0,0,0,0,0,0,0,0,0,0,0,0,0,0,0,0,0,0,0,0,0,-8,-8,-8,0,0,0,0,0,-17,-25,-88,0,0,0,0,0,0,0,0,0,0,0,0,0,0,0,0,0,0,0,0,0,0,0,0,0,0,0,0]} 1. d4 {[%emt 0:00:04]} Nf6 {[%emt 0:00:17]} 2. c4 {[%emt 0:00:04]} g6 {[%emt 0:00:06]} 3. Nc3 {[%emt 0:00:15]} d5 {[%emt 0:00:06]} 4. cxd5 {[%emt 0:00:04]} Nxd5 {[%emt 0:00:03]} 5. e4 {[%emt 0:00:07]} Nxc3 {[%emt 0:00:04]} 6. bxc3 {[%emt 0:00:05]} Bg7 {[%emt 0:00:04]} 7. Bc4 {[%emt 0:00:43]} c5 {[%emt 0:00:08]} 8. Ne2 {[%emt 0:00:03]} Nc6 {[%emt 0:00:13]} 9. Be3 {[%emt 0:00:02]} O-O {[%emt 0:00:10]} 10. Rc1 {[%emt 0:00:25]} cxd4 {[%emt 0:02:36]} 11. cxd4 {[%emt 0:00:08]} Qa5+ {[%emt 0:00:08]} 12. Kf1 {[%emt 0:00:03] 12.Rc3 injects fresh life into this line.} Qa3 {[%emt 0:00:07]} 13. Rc3 {[%emt 0:00:30] D87: Exchange Grünfeld: Classical Line: Variations without ...cxd4.} Qd6 {[%emt 0:00:29][%cal Oc6d4]} 14. h4 {[%emt 0:01:18]} Be6 {[%emt 0:18:22]} 15. h5 {[%emt 0:05:54] [#]} Bxc4 $146 {[%emt 0:02:31]} ({Black should try} 15... Nxd4 $15 16. Bxd4 Bxc4 17. Rxc4 e5) ({Predecessor:} 15... Nxd4 16. Bxd4 Bxc4 17. Rxc4 e5 18. h6 Bf6 19. f4 exd4 20. e5 Qe6 21. Qb3 Bd8 22. Nxd4 {½-½ Macchiagodena,M (2270)-Sun,W (2269) W-ch WS/M/640 email 2017}) 16. Rxc4 $11 {[%emt 0:01:06]} Rad8 {[%emt 0:09:05]} 17. Qc1 {[%emt 0:08:32]} Ne5 {[%mdl 64] [#] Back Rank} 18. Bf4 {[%emt 0:18:28][%mdl 64] Pin} (18. dxe5 $2 Qd1+ 19. Qxd1 Rxd1#) 18... Qe6 {[%emt 0:06:58]} 19. Bxe5 {[%emt 0:15:02]} (19. dxe5 $2 {perishes.} Qxc4 20. Rh2 Qxe4 $19) 19... Bxe5 {[%emt 0:00:10]} 20. hxg6 {[%emt 0:00:03]} hxg6 {[%emt 0:00:06]} 21. Rh3 {[%emt 0:00:33]} (21. dxe5 $2 {is the wrong capture.} Qxc4 22. g3 Qxe4 $19) 21... Bg7 {[%emt 0:09:10]} 22. e5 {[%emt 0:00:24]} b5 {[%emt 0:08:24]} 23. Rc6 {[%emt 0:07:52]} Qxa2 {[%emt 0:01:04]} 24. Ra3 {[%emt 0:00:08]} Qd5 {[%emt 0:00:09]} 25. Rxa7 {[%emt 0:00:47]} e6 {[%emt 0:06:26]} (25... Bxe5 $2 26. Rc5 $18) 26. Qc2 {[%emt 0:10:56] And now Rc5 would win.} Ra8 {[%emt 0:10:20]} 27. Rcc7 {[%emt 0:06:59]} (27. Rc5 $5 {[%cal Rc5d5]} Rxa7 28. Rxd5 Ra1+ 29. Nc1 exd5 30. g3 $11) 27... Rxa7 {[%emt 0:01:18]} 28. Rxa7 {[%emt 0:00:01]} b4 {[%emt 0:00:16]} 29. Qc7 $1 {[%emt 0:02:26]} Bh6 {[%emt 0:09:16]} 30. f4 $1 {[%emt 0:06:28]} g5 {[%emt 0:03:10]} 31. Qb7 {[%emt 0:03:26]} Qb3 {[%emt 0:00:53]} 32. fxg5 {[%emt 0:02:53]} (32. Qf3 {simplifies} Qxf3+ 33. gxf3 Rb8 34. fxg5 Bxg5 35. f4) 32... Qb1+ {[%emt 0:01:46]} 33. Kf2 {[%emt 0:00:01]} Bxg5 {[%emt 0:00:10] ...Bd2 is the strong threat.} 34. Qf3 {[%emt 0:01:05]} ({White should play} 34. Ra3 $1 $15) 34... f6 {[%emt 0:02:00]} (34... b3 $17 {Threatens to win with ...b2.} 35. Rb7 b2) 35. Ra8 $15 {[%emt 0:02:32]} Rxa8 {[%emt 0:01:10]} (35... b3 $1 $15 36. exf6 Rxa8 37. Qxa8+ Kf7 38. Qb7+ Kxf6) 36. Qxa8+ {[%emt 0:00:01][%mdl 4096] Endgame KQB-KQN} Kf7 {[%emt 0:01:53] ...Bd2 would be deadly.} 37. Qb7+ {[%emt 0:00:49]} Kg6 {[%emt 0:00:19] White must now prevent ...Bd2.} 38. Qb8 {[%emt 0:00:32]} Qf5+ {[%emt 0:03:06]} 39. Ke1 {[%emt 0:00:12]} Qb1+ {[%emt 0:00:08]} 40. Kf2 {[%emt 0:00:01]} Kg7 {[%emt 0:01:17]} 41. Qb7+ {[%emt 0:00:47]} Kh6 {[%emt 0:00:11]} 42. Qb8 {[%emt 0:00:10]} (42. Qf3 Kg6 43. Qa8 Kg7) 42... Qf5+ {[%emt 0:00:04]} 43. Ke1 {[%emt 0:00:01]} Qb1+ {[%emt 0:00:01]} 44. Kf2 {[%emt 0:00:02]} Qf5+ {[%emt 0:04:17]} 45. Ke1 {[%emt 0:00:05]} fxe5 {[%emt 0:00:50]} 46. Qxb4 {[%emt 0:01:33]} e4 {[%emt 0:00:33]} 47. Qc5 {[%emt 0:00:59]} Qf7 {[%emt 0:01:21]} (47... Qf6 {simplifies} 48. Qe5 Qxe5 49. dxe5 Kg6) 48. Qe5 {[%emt 0:03:21]} e3 {[%emt 0:00:28]} 49. Qg3 {[%emt 0:00:17] Inhibits Qf2+.} Qf8 {[%emt 0:01:41]} (49... Qf5 $5 50. Qh3+ $8 Kg6 51. Qxf5+ Kxf5 $11) 50. Qh2+ {[%emt 0:03:20]} Kg6 {[%emt 0:00:05]} 51. g4 {[%emt 0:01:02] [#]} Qa8 {[%emt 0:01:34]} (51... Qf3 $1 $17 52. Qh5+ Kf6) 52. Nf4+ $11 {[%emt 0:01:26] The position is equal.} Bxf4 {[%emt 0:00:05]} (52... Kf6 $5 53. Nh5+ $8 Kf7 54. Qc7+ Be7 $11) 53. Qxf4 {[%emt 0:00:05] KQ-KQ} Qa5+ {[%emt 0:00:08]} 54. Kf1 {[%emt 0:00:13]} Qb5+ {[%emt 0:00:50]} 55. Kg2 $1 {[%emt 0:01:11]} Qe2+ {[%emt 0:00:16]} 56. Kh3 {[%emt 0:00:45]} Qd3 {[%emt 0:00:23] ( -> ...e2+)} 57. Kg3 {[%emt 0:00:20]} Qd2 {[%emt 0:01:42]} 58. Qe4+ {[%emt 0:01:17]} Kf7 {[%emt 0:00:02] Strongly threatening ...Qf2+.} 59. Qf4+ {[%emt 0:00:28]} Ke8 {[%emt 0:00:05]} 60. Qb8+ {[%emt 0:01:02]} Kd7 {[%emt 0:00:01]} 61. Qb5+ {[%emt 0:00:53]} Kc7 {[%emt 0:00:01]} 62. Qc5+ {[%emt 0:00:27]} Kb7 {[%emt 0:00:05]} 63. Qb5+ {[%emt 0:00:09]} Ka7 {[%emt 0:00:03]} 64. Qc5+ {[%emt 0:00:22]} Ka6 {[%emt 0:00:08] aiming for ...Qf2+.} 65. Kf3 {[%emt 0:00:40] Weighted Error Value: White=0.06 (flawless) /Black=0.07 (flawless)} 1/2-1/2

[Event "20th Delhi GM Open 2023"]
[Site "New Delhi"]
[Date "2023.03.26"]
[Round "6.6"]
[White "Sethuraman, S.P."]
[Black "Viani Antonio Dcunha"]
[Result "0-1"]
[ECO "D11"]
[WhiteElo "2639"]
[BlackElo "2386"]
[Annotator "TA"]
[PlyCount "50"]
[EventDate "2023.03.23"]
[EventType "swiss"]
[EventCountry "IND"]
[SourceTitle "playchess.com"]
[Source "ChessBase"]
[SourceQuality "1"]
[TimeControl "5400+30"]

{[%evp 10,50,24,15,35,8,0,12,23,21,25,19,29,12,13,19,35,19,22,18,18,16,27,-162,-166,-172,-176,-162,-162,-197,-197,-197,-200,-327,-291,-351,-354,-351,-339,-506,-494,-510,-531]} 1. d4 {[%emt 0:00:11]} d5 {[%emt 0:00:18]} 2. c4 {[%emt 0:00:43]} c6 {[%emt 0:00:12]} 3. Nf3 {[%emt 0:00:48]} Nf6 {[%emt 0:00:15]} 4. Qc2 {[%emt 0:02:55]} g6 {[%emt 0:05:08]} 5. Bf4 {[%emt 0:01:17]} Bg7 {[%emt 0:05:52]} 6. e3 {[%emt 0:00:22]} Bf5 {[%emt 0:03:35] D11: Slav Defence: 3 Nf3 sidelines and 3...Nf6 4 e3 Bg4.} 7. Bd3 {[%emt 0:02:30]} Bxd3 {[%emt 0:00:19]} 8. Qxd3 {[%emt 0:00:05]} Nbd7 {[%emt 0:07:41] The position is equal.} 9. Nc3 {[%emt 0:00:31]} Rc8 {[%emt 0:09:24]} 10. O-O {[%emt 0:04:50]} O-O {[%emt 0:01:55]} 11. Rfd1 {[%emt 0:08:40] [#]} a6 $146 {[%emt 0:00:02]} ({Predecessor:} 11... Qa5 12. Ne5 Nxe5 13. Bxe5 Rfd8 14. Rac1 e6 15. c5 b6 16. cxb6 axb6 17. a4 Nd7 {½-½ Mandl,R (2390)-Stangl,M (2505) Dortmund op-A 1993 (3)}) 12. Rac1 {[%emt 0:16:14]} b5 {[%emt 0:11:01]} 13. b3 {[%emt 0:09:07][%cal Bb2b3,Bb3c4,Bc4c5][%mdl 32]} dxc4 {[%emt 0:04:51]} 14. bxc4 {[%emt 0:00:17]} Nb6 {[%emt 0:00:53][%cal Bd7b6,Bb6c4,Bc4b2,Bb2d1][%mdl 32]} 15. c5 {[%emt 0:01:37]} Nc4 {[%emt 0:01:18]} 16. Ne5 $2 {[%emt 0:04:52] [#] This move loses the game for White.} (16. Qe2 $11 {and White stays safe.}) 16... Nb2 $1 $19 {[%emt 0:02:16][%csl LRd1,LRd3]} 17. Qc2 {[%emt 0:03:38]} Nxd1 {[%emt 0:01:48]} 18. Rxd1 {[%emt 0:00:04]} Nh5 {[%emt 0:15:44]} 19. h4 {[%emt 0:08:29]} Nxf4 {[%emt 0:01:09]} 20. exf4 {[%emt 0:00:06]} Bxe5 {[%emt 0:08:52]} 21. dxe5 {[%emt 0:01:58]} (21. fxe5 $142 Qd7 22. Ne4) 21... Qc7 {[%emt 0:00:06]} 22. h5 {[%emt 0:01:41]} Rcd8 {[%emt 0:01:11]} ({Not} 22... gxh5 23. Ne4 f6 24. exf6 $15) 23. Re1 {[%emt 0:01:44]} Qd7 {[%emt 0:02:46]} ({Weaker is} 23... gxh5 24. Qf5 $17) 24. Qb3 {[%emt 0:03:47]} (24. Ne4 {keeps fighting.}) 24... Qd2 {[%emt 0:01:44]} 25. Re3 {[%emt 0:05:51]} Rd3 {[%emt 0:00:20] Weighted Error Value: White=0.45/Black=0.05 (flawless)} 0-1

[Event "20th Delhi GM Open 2023"]
[Site "New Delhi"]
[Date "2023.03.26"]
[Round "6.7"]
[White "Ramakrishna, J.."]
[Black "Pantsulaia, Levan"]
[Result "0-1"]
[ECO "A43"]
[WhiteElo "2053"]
[BlackElo "2597"]
[Annotator "TA"]
[PlyCount "74"]
[EventDate "2023.03.23"]
[EventType "swiss"]
[EventCountry "IND"]
[SourceTitle "playchess.com"]
[Source "ChessBase"]
[SourceQuality "1"]
[TimeControl "5400+30"]

{[%evp 17,74,39,43,35,56,25,67,63,70,69,81,69,76,46,43,33,86,4,31,-57,0,-48,17,11,15,14,13,0,12,17,12,28,19,37,22,23,25,0,0,0,0,-97,-82,-97,-85,-181,-189,-179,-161,-164,-166,-193,-189,-366,-369,-389,-378,-429,-430]} 1. d4 {[%emt 0:00:20]} c5 {[%emt 0:00:15]} 2. d5 {[%emt 0:00:27]} g6 {[%emt 0:00:06]} 3. e4 {[%emt 0:00:20]} Bg7 {[%emt 0:00:04]} 4. Nf3 {[%emt 0:00:19]} d6 {[%emt 0:00:06]} 5. Bb5+ {[%emt 0:08:42]} Bd7 {[%emt 0:00:08]} 6. Bxd7+ {[%emt 0:00:27]} Nxd7 {[%emt 0:00:20]} 7. a4 {[%emt 0:00:20]} Ngf6 {[%emt 0:02:10]} 8. Nc3 {[%emt 0:00:19]} O-O {[%emt 0:00:20]} 9. O-O {[%emt 0:00:05]} a6 {[%emt 0:03:26]} 10. Re1 {[%emt 0:00:07] A43: Schmid Benoni.} Ne8 {[%emt 0:09:10]} 11. Bf4 {[%emt 0:04:17] [#]} Nb6 $146 {[%emt 0:02:37]} ({Predecessor:} 11... Nc7 12. Qd3 Rc8 13. e5 dxe5 14. Nxe5 Nf6 15. Rad1 e6 16. Nxf7 Rxf7 17. dxe6 Nxe6 18. Rxe6 Qxd3 19. Rxd3 {1-0 Mihajlovskij,S (2429)-Oleksienko,M (2497) Minsk Inautomarket op 2006 (8)}) 12. Qd3 {[%emt 0:04:22] White is slightly better.} Nc7 {[%emt 0:00:29]} 13. a5 {[%emt 0:01:41]} Nc8 {[%emt 0:00:06]} 14. e5 {[%emt 0:07:53]} b5 {[%emt 0:02:15] Black is weak on the dark squares} 15. axb6 {[%emt 0:01:14]} Nxb6 {[%emt 0:00:05]} 16. Rad1 a5 {[%emt 0:18:47]} (16... Qd7 $14) 17. exd6 {[%emt 0:14:38]} (17. h4 $16) 17... exd6 $11 {[%emt 0:02:00]} 18. Ne4 {[%emt 0:01:07]} ({Better is} 18. Ng5 $14) 18... c4 {[%emt 0:05:52]} ({Black should play} 18... Na4 $1 $15 19. Qb3 (19. Bxd6 Nxb2 20. Qf1 Re8 $15) 19... Nxb2) 19. Qa3 {[%emt 0:15:44]} (19. Qd2 $11) 19... Ncxd5 {[%emt 0:06:39]} (19... Nb5 $15 20. Qe3 Re8) 20. Bxd6 {[%emt 0:02:39]} Re8 {[%emt 0:02:08]} 21. Bc5 {[%emt 0:11:58] [#] aiming for Bxb6.} Qc7 {[%emt 0:01:03]} 22. Bd4 {[%emt 0:02:35]} Re7 {[%emt 0:14:03]} 23. Bxg7 {[%emt 0:04:03]} Kxg7 {[%emt 0:00:10]} 24. Nc3 {[%emt 0:01:02]} Rxe1+ {[%emt 0:00:37]} 25. Rxe1 {[%emt 0:00:24]} Nb4 {[%emt 0:01:36]} 26. Nb5 {[%emt 0:03:19]} Qc5 {[%emt 0:04:25]} 27. Qc3+ {[%emt 0:01:05]} (27. Re5 $5 {[%cal Re5c5]} N6d5 28. Nfd4 $14) 27... Kg8 {[%emt 0:00:05]} 28. Nbd4 {[%emt 0:01:04]} N4d5 {[%emt 0:04:50]} 29. Qd2 {[%emt 0:00:43]} (29. Qa3 $1 $11 {remains equal.} Qxa3 30. bxa3) 29... c3 $17 {[%emt 0:00:25]} 30. bxc3 {[%emt 0:00:13]} Qxc3 {[%emt 0:00:12]} 31. Qc1 {[%emt 0:06:53]} (31. Rb1 $17) 31... a4 $19 {[%emt 0:04:03][%cal Ba5a4,Ba4a3,Ba3a2][%mdl 32]} 32. Nb5 {[%emt 0:02:02]} Qb4 $36 {[%emt 0:02:03][%mdl 2048] White is under strong pressure.} 33. Na3 {[%emt 0:02:04]} Nc4 {[%emt 0:00:49] Repels Ne5} 34. Nxc4 {[%emt 0:00:06]} Qxc4 {[%emt 0:00:05]} 35. h4 $2 {[%emt 0:01:14] [#]} (35. Qa3 {keeps fighting.}) 35... a3 {[%emt 0:00:32] And now ...Nb4 would win.} 36. h5 {[%emt 0:01:06]} a2 {[%emt 0:00:39]} ({Not} 36... gxh5 37. Qg5+ Kh8 38. Qf5 $11) 37. Qa1 {[%emt 0:01:03]} Qxc2 {[%emt 0:01:26] Weighted Error Value: White=0.30/Black=0.13 (very precise)} 0-1